fUSD/lending_fUSD_20260126
["ID","MTS","AMOUNT","RATE_DAILY","PERIOD"]
[403657581,1769449840181,-500.0,0.00016777,2]
[403657583,1769449840190,-500.0,0.00016777,2]
[403657585,1769449840199,-500.0,0.00016777,2]
[403657587,1769449840209,-500.0,0.00016777,2]
[403657589,1769449840219,-500.0,0.00016777,2]
[403657591,1769449840228,-500.0,0.00016777,2]
[403657593,1769449840238,-151.0,0.00016783,2]
[403657595,1769449840247,-151.0,0.00016783,2]
[403657597,1769449840256,-151.0,0.00016783,2]
[403657599,1769449840266,-151.0,0.00016783,2]
[403657601,1769449840275,-151.0,0.00016783,2]
[403657603,1769449840284,-151.0,0.00016783,2]
[403657605,1769449840294,-200.10887185,0.00016783,2]
[403657607,1769449840303,-9000.0,0.00016783,2]
[403657609,1769449840312,-3113.21158034,0.00016783,2]
[403657611,1769449840321,-1689.79226196,0.00016796,2]
[403657613,1769449840332,-150.00297153,0.00016824,2]
[403657615,1769449840342,-166.66,0.00016825,2]
[403657617,1769449840351,-467.57,0.00016858,2]
[403657619,1769449840361,-319.12,0.0001688,2]
[403657621,1769449840372,-9999.99,0.0001688,2]
[403657623,1769449840382,-8528.71,0.0001688,2]
[403657625,1769449840391,-500.0,0.00016887,2]
[403657627,1769449840401,-488.29089137,0.00016887,2]
[403657629,1769449840411,-500.0,0.00016887,2]
[403657631,1769449840420,-500.0,0.00016887,2]
[403657633,1769449840429,-500.0,0.00016887,2]
[403657635,1769449840439,-500.0,0.00016887,2]
[403657637,1769449840448,-500.0,0.00016887,2]
[403657639,1769449840458,-500.0,0.00016887,2]
[403657641,1769449840467,-500.0,0.00016887,2]
[403657644,1769449840477,-500.0,0.00016887,2]
[403657646,1769449840487,-150.99,0.00016915,2]
[403657648,1769449840497,-1689.79226196,0.00016934,2]
[403657650,1769449840507,-1500.0,0.00016946,2]
[403657652,1769449840516,-1689.79226196,0.00017072,2]
[403657654,1769449840526,-166.66,0.00017158,2]
[403657656,1769449840536,-283.80462085,0.0001721,2]
[403657659,1769449840547,-1689.79226196,0.0001721,2]
[403657661,1769449840556,-158.77791206,0.00017267,2]
[403657662,1769449840565,-225.0,0.00017299,2]
[403657665,1769449840575,-283.80462085,0.00017348,2]
[403657667,1769449840586,-1689.79226196,0.00017348,2]
[403657669,1769449840596,-225.0,0.00017377,2]
[403657671,1769449840605,-252.34127662,0.00017386,2]
[403657673,1769449840614,-218.47,0.0001745,2]
[403657675,1769449840624,-283.80462085,0.00017486,2]
[403657677,1769449840633,-1689.79226196,0.00017486,2]
[403657679,1769449840646,-166.66,0.00017491,2]
[403657681,1769449840656,-283.80462085,0.00017624,2]
[403657683,1769449840666,-1689.79226196,0.00017624,2]
[403657685,1769449840675,-1226.12,0.00017642,2]
[403657687,1769449840685,-283.80462085,0.00017762,2]
[403657689,1769449840695,-1689.79226196,0.00017762,2]
[403657691,1769449840705,-225.0,0.00017763,2]
[403657693,1769449840715,-241.0,0.00017776,2]
[403657695,1769449840724,-867.98,0.00017782,2]
[403657697,1769449840734,-1733.4895823,0.0001779,2]
[403657699,1769449840744,-1500.0,0.000178,2]
[403657701,1769449840754,-319.12,0.00017817,2]
[403657703,1769449840763,-8081.75591382,0.0001782,2]
[403657705,1769449840773,-282.28,0.00017847,2]
[403657707,1769449840783,-287.16869419,0.000179,2]
[403657709,1769449840792,-283.80462085,0.000179,2]
[403657711,1769449840803,-419.85518748,0.000179,2]
[403657713,1769449840812,-1689.79226196,0.000179,2]
[403657715,1769449840821,-225.0,0.00017929,2]
[403657717,1769449840832,-521.41483801,0.00017973,2]
[403657720,1769449840843,-151.0,0.00017997,2]
[403657722,1769449840854,-500.0,0.00017999,2]
[403657724,1769449840863,-201.139,0.00017999,2]
[403657726,1769449840872,-6914.0,0.00018,2]
[403657728,1769449840882,-748748.38964157,0.00018,2]
[403657730,1769449840891,-3762887.92521538,0.00018,2]
[403657924,1769449842748,-1.7e-07,0.00018,2]
[403657946,1769449843083,-316.35,0.00018,2]
[403658032,1769449844653,-1480864.02459953,0.00018,2]
[403658044,1769449845909,-921.5606106,0.00018,2]
[403658045,1769449845920,-2585.97151692,0.00018,2]
[403658046,1769449846066,-3488.50384544,0.00018,2]
[403658057,1769449855167,-153.04058837,0.00016467,2]
[403658058,1769449870238,-151.0,0.00016186,2]
[403658059,1769449870264,-65.85110539,0.00016467,2]
[403658060,1769449880021,-23.53985112,0.00016467,2]
[403658061,1769449880700,-244.50718168,0.00016567,2]
[403658062,1769449883839,-440.46022887,0.00016567,2]
[403658063,1769449885798,-159.20519787,0.00016567,2]
[403658064,1769449890295,180.46425866,0.00016566,2]
[403658065,1769449892602,-241.50529993,0.00016567,2]
[403658066,1769449896493,-277.90939824,0.00016567,2]
[403658067,1769449897953,1934.476,0.00016236,2]
[403658068,1769449898005,622.61374542,0.00016566,2]
[403658069,1769449898039,163.316,0.00016236,2]
[403658070,1769449901583,-383.33077612,0.00016567,2]
[403658071,1769449903617,-220.85293412,0.00016567,2]
[403658072,1769449916279,-262.34404567,0.00016567,2]
[403658073,1769449917766,-296.01635023,0.00016567,2]
[403658074,1769449920362,-317.9260501,0.00016567,2]
[403658075,1769449921297,300.0,0.00016566,2]
[403658076,1769449925329,-176.3635118,0.00016567,2]
[403658077,1769449927355,-152.97215145,0.00016567,2]
[403658078,1769449928797,-201.35302676,0.00016567,2]
[403658079,1769449931038,-237.47072118,0.00016567,2]
[403658080,1769449933025,-282.32205396,0.00016567,2]
[403658081,1769449936240,-322.87212497,0.00016567,2]
[403658082,1769449941699,-221.65826949,0.00016567,2]
[403658083,1769449943092,-217.67794604,0.00016567,2]
[403658084,1769449950612,-183.7866476,0.00016567,2]
[403658085,1769449952652,-151.69590403,0.00016567,2]
[403658086,1769449957528,-218.91069413,0.00016567,2]
[403658087,1769449958817,398.08201811,0.00016566,2]
[403658088,1769449960053,-364.29993488,0.00016567,2]
[403658089,1769449964544,-245.61663754,0.00016567,2]
[403658090,1769449981531,300.0,0.00016566,2]
[403658091,1769450013422,159.20519787,0.00016467,2]
[403658092,1769450019925,603.03375909,0.00016467,2]
[403658093,1769450041620,287.0,0.00016566,2]
[403658094,1769450073198,278.65741268,0.00016566,2]
[403658095,1769450081850,500.0,0.0001137,2]
[403658096,1769450082126,500.0,0.0001137,2]
[403658097,1769450082373,500.0,0.0001137,2]
[403658098,1769450082612,500.0,0.0001137,2]
[403658099,1769450095902,189.2559575,0.00016467,2]
[403658100,1769450101149,300.0,0.00016566,2]
[403658101,1769450101183,1200.0,0.00016566,2]
[403658102,1769450154133,1036.82594843,0.00016557,2]
[403658103,1769450154156,4185.83106226,0.00016557,2]
[403658104,1769450160162,402.02250606,0.00016467,2]
[403658105,1769450162652,151.0,0.00016567,2]
[403658106,1769450223514,1409.70738121,0.00016467,2]
[403658107,1769450225954,300.0,0.00016566,2]
[403658108,1769450228524,200.0,0.00016567,2]
[403658109,1769450228582,200.0,0.00016567,2]
[403658110,1769450228609,200.0,0.00016567,2]
[403658111,1769450230835,194.2044672,0.00016567,2]
[403658112,1769450231729,2500.0,0.00016567,2]
[403658113,1769450232047,152.23825789,0.00016567,2]
[403658114,1769450232331,105.00632538,0.00016567,2]
[403658115,1769450232353,2394.99367462,0.00016567,2]
[403658116,1769450232924,2500.0,0.00016567,2]
[403658117,1769450233523,2500.0,0.00016567,2]
[403658118,1769450234048,2605.01632538,0.00016567,2]
[403658119,1769450234071,937.98367462,0.00016567,2]
[403658120,1769450234164,2500.0,0.00016567,2]
[403658121,1769450234745,2500.0,0.00016567,2]
[403658122,1769450234948,151.0,0.00016567,2]
[403658123,1769450235381,829.88998163,0.00016567,2]
[403658124,1769450235422,250.0,0.00016567,2]
[403658125,1769450235554,151.0,0.00016567,2]
[403658126,1769450236118,250.0,0.00016567,2]
[403658127,1769450236300,151.0,0.00016567,2]
[403658128,1769450236729,250.0,0.00016567,2]
[403658129,1769450236962,500.0,0.00016567,2]
[403658130,1769450237100,-575.87326995,0.00016567,2]
[403658131,1769450241623,-250.0,0.00016567,2]
[403658132,1769450241646,-50.0,0.00016567,2]
[403658133,1769450241922,-101.0,0.00016567,2]
[403658134,1769450241951,-250.0,0.00016567,2]
[403658135,1769450241981,-500.0,0.00016567,2]
[403658136,1769450242009,-250.0,0.00016567,2]
[403658137,1769450242037,-151.0,0.00016567,2]
[403658138,1769450242064,-250.0,0.00016567,2]
[403658139,1769450242093,-500.0,0.00016567,2]
[403658140,1769450242121,-250.0,0.00016567,2]
[403658141,1769450242153,-151.0,0.00016567,2]
[403658142,1769450242186,-500.0,0.00016567,2]
[403658143,1769450242217,-250.0,0.00016567,2]
[403658144,1769450242246,-250.0,0.00016567,2]
[403658145,1769450242281,-151.0,0.00016567,2]
[403658146,1769450242310,-500.0,0.00016567,2]
[403658147,1769450242340,-250.0,0.00016567,2]
[403658148,1769450242368,-265.73138648,0.00016567,2]
[403658149,1769450242396,-151.0,0.00016567,2]
[403658150,1769450242426,-250.0,0.00016567,2]
[403658151,1769450242943,-500.0,0.00016567,2]
[403658152,1769450242974,-151.0,0.00016567,2]
[403658153,1769450243003,-250.0,0.00016567,2]
[403658154,1769450243032,-500.0,0.00016567,2]
[403658155,1769450243062,-272.33526907,0.00016567,2]
[403658156,1769450243091,-250.0,0.00016567,2]
[403658157,1769450243121,-500.0,0.00016567,2]
[403658158,1769450243152,-228.40126391,0.00016567,2]
[403658159,1769450243183,-250.0,0.00016567,2]
[403658160,1769450243214,-500.0,0.00016567,2]
[403658161,1769450243750,-250.0,0.00016567,2]
[403658162,1769450243780,-500.0,0.00016567,2]
[403658163,1769450245449,-250.0,0.00016567,2]
[403658164,1769450245479,-500.0,0.00016567,2]
[403658165,1769450245509,-250.0,0.00016567,2]
[403658166,1769450245538,-250.0,0.00016567,2]
[403658167,1769450245568,-500.0,0.00016567,2]
[403658168,1769450245596,-250.0,0.00016567,2]
[403658169,1769450245625,-281.77574976,0.00016567,2]
[403658170,1769450245653,-691.39774486,0.00016567,2]
[403658171,1769450245682,-250.0,0.00016567,2]
[403658172,1769450245965,-250.0,0.00016567,2]
[403658173,1769450245994,-823.77908852,0.00016567,2]
[403658174,1769450246755,-250.0,0.00016567,2]
[403658175,1769450246776,-172.0456,0.00016567,2]
[403658176,1769450248237,-77.9544,0.00016567,2]
[403658177,1769450248274,-250.0,0.00016567,2]
[403658178,1769450248311,-250.0,0.00016567,2]
[403658179,1769450248343,-500.0,0.00016567,2]
[403658180,1769450248503,-6997.25370368,0.00016567,2]
[403658181,1769450248815,-250.0,0.00016567,2]
[403658182,1769450248846,-9750.01,0.00016567,2]
[403658183,1769450248968,-250.0,0.00016567,2]
[403658184,1769450248982,-9500.01,0.00016567,2]
[403658185,1769450249004,-10000.01,0.00016567,2]
[403658186,1769450249094,-10000.01,0.00016567,2]
[403658187,1769450249139,-10000.01,0.00016567,2]
[403658188,1769450254394,-250.0,0.00016567,2]
[403658189,1769450254424,-250.0,0.00016567,2]
[403658190,1769450254452,-250.0,0.00016567,2]
[403658191,1769450254482,-499.74112251,0.00016567,2]
[403658192,1769450254511,-151.0,0.00016567,2]
[403658193,1769450254540,-151.0,0.00016567,2]
[403658194,1769450254568,-151.0,0.00016567,2]
[403658195,1769450254597,-151.0,0.00016567,2]
[403658196,1769450254757,-454.1716,0.00016567,2]
[403658197,1769450254829,-6292.52775498,0.00016567,2]
[403658198,1769450256573,-151.0,0.00016567,2]
[403658199,1769450256594,-12.01929427,0.00016567,2]
[403658200,1769450257561,-138.98070573,0.00016567,2]
[403658201,1769450257592,-151.0,0.00016567,2]
[403658202,1769450257623,-151.0,0.00016567,2]
[403658203,1769450257653,-151.0,0.00016567,2]
[403658204,1769450257794,-8816.04858854,0.00016567,2]
[403658205,1769450259679,-151.0,0.00016567,2]
[403658206,1769450259701,-151.0,0.00016567,2]
[403658207,1769450259724,-23.69714419,0.00016567,2]
[403658208,1769450261644,-127.30285581,0.00016567,2]
[403658209,1769450261671,-127.8892121,0.00016567,2]
[403658210,1769450263144,-517.90929034,0.00016567,2]
[403658211,1769450263944,-10000.01,0.00016567,2]
[403658212,1769450265228,-166.66,0.00016567,2]
[403658213,1769450269582,-367.40314113,0.00016567,2]
[403658214,1769450271661,-300.0,0.00016567,2]
[403658215,1769450273785,-258.69331905,0.00016567,2]
[403658216,1769450276409,-155.03186656,0.00016567,2]
[403658217,1769450278103,2072.0718,0.00016467,2]
[403658218,1769450279097,-203.76731991,0.00016567,2]
[403658219,1769450280584,-218.34596674,0.00016567,2]
[403658220,1769450285392,-169.65782382,0.00016567,2]
[403658221,1769450289118,-161.37818768,0.00016567,2]
[403658222,1769450291087,-321.55787541,0.00016567,2]
[403658223,1769450293155,-200.0,0.00016467,2]
[403658224,1769450295188,-273.0,0.00016467,2]
[403658225,1769450299610,-175.38621614,0.00016467,2]
[403658226,1769450301232,-155.26686864,0.00016467,2]
[403658227,1769450303980,-423.79,0.00016467,2]
[403658228,1769450309912,-295.06693158,0.00016467,2]
[403658229,1769450312065,-189.91285581,0.00016467,2]
[403658230,1769450316775,-165.57403326,0.00016467,2]
[403658231,1769450318785,-177.2800995,0.00016467,2]
[403658232,1769450321042,-121.81502235,0.00016467,2]
[403658233,1769450321064,-126.53259564,0.00016467,2]
[403658234,1769450322750,-141.4824084,0.00016467,2]
[403658235,1769450322772,-42.47275702,0.00016567,2]
[403658236,1769450325513,-219.23544984,0.00016567,2]
[403658237,1769450327660,-655.63377225,0.00016567,2]
[403658238,1769450333783,-182.4341895,0.00016567,2]
[403658239,1769450336968,-382.16196347,0.00016567,2]
[403658240,1769450341482,-314.91192107,0.00016567,2]
[403658241,1769450343534,-228.42331248,0.00016567,2]
[403658242,1769450349083,-300.0,0.00016567,2]
[403658243,1769450353441,-240.49128124,0.00016567,2]
[403658244,1769450355526,-240.12905618,0.00016567,2]
[403658245,1769450358365,-162.06320131,0.00016567,2]
[403658246,1769450359890,-167.15341157,0.00016567,2]
[403658247,1769450359989,-2990.67593162,0.00016567,2]
[403658248,1769450360018,-1946.58633676,0.00016567,2]
[403658249,1769450365198,-240.68893856,0.00016467,2]
[403658250,1769450365985,-2259.31106144,0.00016467,2]
[403658251,1769450366014,-2072.0718,0.00016567,2]
[403658252,1769450368492,-382.3120983,0.00016567,2]
[403658253,1769450372495,-220.90167977,0.00016567,2]
[403658254,1769450372537,609.91657242,0.00016553,2]
[403658255,1769450375168,-272.39166125,0.00016567,2]
[403658256,1769450376616,-316.71753225,0.00016567,2]
[403658257,1769450379382,-180.10092261,0.00016567,2]
[403658258,1769450381955,-165.59896283,0.00016528,2]
[403658259,1769450381981,-16.99789604,0.00016567,2]
[403658260,1769450384595,-244.04452484,0.00016567,2]
[403658261,1769450386682,-160.40670227,0.00016567,2]
[403658262,1769450389619,-897.80641989,0.00016567,2]
[403658263,1769450391662,-288.38501587,0.00016567,2]
[403658264,1769450397579,-732.12055295,0.00016567,2]
[403658265,1769450400290,-300.0,0.00016567,2]
[403658266,1769450405052,-187.57386683,0.00016566,2]
[403658267,1769450408363,-258.87738128,0.00016467,2]
[403658268,1769450414245,-479.43231453,0.00016467,2]
[403658269,1769450417073,-357.84889641,0.00016467,2]
[403658270,1769450421983,-639.41946431,0.00016467,2]
[403658271,1769450422617,336.0,0.0001386,2]
[403658272,1769450425901,-221.84434696,0.00015203,2]
[403658273,1769450427469,-114.15565304,0.00015203,2]
[403658274,1769450427491,-45.31556183,0.00015963,2]
[403658275,1769450429155,-184.0,0.00015963,2]
[403658276,1769450430776,-108.54443537,0.00015963,2]
[403658277,1769450430798,-167.10986205,0.00016467,2]
[403658278,1769450432939,-821.94509455,0.00016467,2]
[403658279,1769450435426,-224.34570258,0.00016467,2]
[403658280,1769450439296,-260.66825846,0.00016467,2]
[403658281,1769450445004,-196.31686961,0.00016467,2]
[403658282,1769450448482,-226.62935403,0.00016467,2]
[403658283,1769450452890,-254.30682026,0.00016467,2]
[403658284,1769450455043,-269.12598303,0.00016467,2]
[403658285,1769450457538,-220.77298238,0.00016467,2]
[403658286,1769450461091,-193.27711953,0.00016466,2]
[403658287,1769450462619,-192.72668879,0.00016466,2]
[403658288,1769450466313,-113.99619168,0.00016466,2]
[403658289,1769450466335,-271.06741652,0.00016467,2]
[403658290,1769450466356,-28.69904088,0.00016467,2]
[403658291,1769450468879,-166.66,0.00016467,2]
[403658292,1769450474277,-41.72555912,0.00016467,2]
[403658293,1769450474298,-128.57575051,0.00016528,2]
[403658294,1769450477030,-120.07440893,0.00016528,2]
[403658295,1769450477055,-52.88364631,0.00016565,2]
[403658296,1769450481270,-187.64021808,0.00016565,2]
[403658297,1769450485190,-59.47613561,0.00016565,2]
[403658298,1769450485221,-300.0,0.00016565,2]
[403658299,1769450485249,-112.42613317,0.00016566,2]
[403658300,1769450485276,-1200.0,0.00016566,2]
[403658301,1769450485305,-150.0,0.00016566,2]
[403658302,1769450485333,-289.0,0.00016566,2]
[403658303,1769450485384,-176.36404475,0.00016567,2]
[403658304,1769450485420,-200.0,0.00016567,2]
[403658305,1769450486968,-226.46511723,0.00016567,2]
[403658306,1769450488510,-249.0,0.00016567,2]
[403658307,1769450491663,-157.51314436,0.00016567,2]
[403658308,1769450493500,151.0,0.0001612,2]
[403658309,1769450493858,-203.84201728,0.00016567,2]
[403658310,1769450497950,2029.506,0.00016236,2]
[403658311,1769450498046,163.499,0.00016236,2]
[403658312,1769450501517,1819.8555,0.00016467,2]
[403658313,1769450502971,-153.49718514,0.00016567,2]
[403658314,1769450505798,-244.80789902,0.00016567,2]
[403658315,1769450507807,739.1397,0.00016467,2]
[403658316,1769450509225,-191.61455368,0.00016567,2]
[403658317,1769450510308,122.47717294,0.00016127,2]
[403658318,1769450510332,28.52282706,0.00016127,2]
[403658319,1769450511335,-191.15444854,0.00016567,2]
[403658320,1769450514061,2500.0,0.00016467,2]
[403658321,1769450519336,-219.58282256,0.00016567,2]
[403658322,1769450525090,-161.9472056,0.00016567,2]
[403658323,1769450527144,-151.0,0.00016142,2]
[403658324,1769450527171,-279.49107141,0.00016567,2]
[403658325,1769450529564,-161.65817532,0.00016567,2]
[403658326,1769450533940,-160.95252468,0.00016567,2]
[403658327,1769450533964,-83.25708548,0.00016567,2]
[403658328,1769450535648,-165.26725566,0.00016567,2]
[403658329,1769450537627,-394.2525394,0.00016567,2]
[403658330,1769450541777,-48.62086432,0.00016567,2]
[403658331,1769450541801,-158.42519797,0.00016567,2]
[403658332,1769450543459,-41.57480203,0.00016567,2]
[403658333,1769450543487,-200.0,0.00016567,2]
[403658334,1769450543509,-200.0,0.00016567,2]
[403658335,1769450543532,-53.78891903,0.00016567,2]
[403658336,1769450546538,-151.0,0.00016183,2]
[403658337,1769450551692,-283.16071513,0.00016567,2]
[403658338,1769450553138,-163.05036584,0.00016567,2]
[403658339,1769450553161,-109.39430892,0.00016567,2]
[403658340,1769450558764,-41.60569108,0.00016567,2]
[403658341,1769450558789,-211.06256738,0.00016567,2]
[403658342,1769450561865,-151.0,0.00016192,2]
[403658343,1769450577165,151.0,0.00016189,2]
[403658344,1769450593041,-235.74026305,0.00016566,2]
[403658345,1769450593068,-300.0,0.00016566,2]
[403658346,1769450593179,151.0,0.00016184,2]
[403658347,1769450608812,214.50838486,0.00016467,2]
[403658348,1769450608897,-288.93743262,0.00016567,2]
[403658349,1769450608924,-151.0,0.00016567,2]
[403658350,1769450608952,-500.0,0.00016567,2]
[403658351,1769450608980,-500.0,0.00016567,2]
[403658352,1769450609009,-151.0,0.00016567,2]
[403658353,1769450609036,-500.0,0.00016567,2]
[403658354,1769450609065,-151.0,0.00016567,2]
[403658355,1769450609094,-500.0,0.00016567,2]
[403658356,1769450609124,-151.0,0.00016567,2]
[403658357,1769450609152,-500.0,0.00016567,2]
[403658358,1769450609181,-151.0,0.00016567,2]
[403658359,1769450609209,-500.0,0.00016567,2]
[403658360,1769450609241,-151.0,0.00016567,2]
[403658361,1769450609271,-500.0,0.00016567,2]
[403658362,1769450609302,-151.0,0.00016567,2]
[403658363,1769450609403,-500.0,0.00016567,2]
[403658364,1769450609431,-151.0,0.00016567,2]
[403658365,1769450609458,-500.0,0.00016567,2]
[403658366,1769450609487,-500.0,0.00016567,2]
[403658367,1769450609517,-151.0,0.00016567,2]
[403658368,1769450609544,-151.0,0.00016567,2]
[403658369,1769450609572,-151.0,0.00016567,2]
[403658370,1769450609599,-274.52139242,0.00016567,2]
[403658371,1769450609628,-1699.96721516,0.00016567,2]
[403658372,1769450609710,-1843.03278484,0.00016567,2]
[403658373,1769450609740,-823.77908852,0.00016567,2]
[403658374,1769450611362,151.0,0.00016201,2]
[403658375,1769450614128,214.50838484,0.00016517,2]
[403658376,1769450620179,214.50838484,0.00016566,2]
[403658377,1769450624167,-2943.7761676,0.00016567,2]
[403658378,1769450624292,-10000.01,0.00016567,2]
[403658379,1769450624339,-10000.01,0.00016567,2]
[403658380,1769450624438,-10000.01,0.00016567,2]
[403658381,1769450624553,-10000.01,0.00016567,2]
[403658382,1769450624688,-10000.01,0.00016567,2]
[403658383,1769450624846,-10000.01,0.00016567,2]
[403658384,1769450625057,-10000.01,0.00016567,2]
[403658385,1769450625269,-10000.01,0.00016567,2]
[403658386,1769450625309,-10000.01,0.00016567,2]
[403658387,1769450655141,1000.0,0.00016566,2]
[403658388,1769450664659,979.1162,0.00016467,2]
[403658389,1769450668461,165.59896277,0.00016566,2]
[403658390,1769450674351,2907.2874843,0.00016566,2]
[403658391,1769450677390,2191.45681431,0.00016566,2]
[403658392,1769450701534,1200.0,0.00016566,2]
[403658393,1769450707777,200.0,0.00016567,2]
[403658395,1769450722617,151.0,0.00016169,2]
[403658396,1769450733869,1205.55053862,0.00016566,2]
[403658397,1769450733893,760.06972008,0.00016566,2]
[403658398,1769450738649,164.5463662,0.00016566,2]
[403658399,1769450739267,500.0,0.00016566,2]
[403658400,1769450739393,500.0,0.00016566,2]
[403658401,1769450739517,500.0,0.00016566,2]
[403658402,1769450739601,500.0,0.00016566,2]
[403658403,1769450739718,500.0,0.00016566,2]
[403658404,1769450739769,500.0,0.00016566,2]
[403658405,1769450739836,500.0,0.00016566,2]
[403658406,1769450739868,500.0,0.00016566,2]
[403658407,1769450739904,500.0,0.00016566,2]
[403658408,1769450739940,500.0,0.00016566,2]
[403658409,1769450740000,500.0,0.00016566,2]
[403658410,1769450740066,500.0,0.00016566,2]
[403658411,1769450740122,500.0,0.00016566,2]
[403658412,1769450740161,500.0,0.00016566,2]
[403658413,1769450740197,500.0,0.00016566,2]
[403658414,1769450740237,500.0,0.00016566,2]
[403658415,1769450740273,500.0,0.00016566,2]
[403658416,1769450740333,500.0,0.00016566,2]
[403658417,1769450740405,75.39391372,0.00016566,2]
[403658418,1769450740434,424.60608628,0.00016566,2]
[403658419,1769450740559,500.0,0.00016566,2]
[403658420,1769450740690,533.49481471,0.00016566,2]
[403658421,1769450741700,500.0,0.00016566,2]
[403658422,1769450758425,195.54321608,0.00016567,2]
[403658423,1769450758463,251.46627477,0.00016567,2]
[403658424,1769450763089,300.0,0.00016566,2]
[403658425,1769450768228,3189.14967515,0.00016557,2]
[403658426,1769450769645,195.06018888,0.00016566,2]
[403658427,1769450823165,-150.00074808,0.00027301,32]
[403658428,1769450823220,-150.00074808,0.00028623,35]
[403658429,1769450823272,-150.00074808,0.00029944,39]
[403658430,1769450823325,-150.00074808,0.00031266,43]
[403658431,1769450823376,-154.2,0.00031644,91]
[403658432,1769450823427,-150.00074808,0.00032588,47]
[403658433,1769450823477,-151.0,0.00033,31]
[403658434,1769450823526,-151.0,0.00033,31]
[403658435,1769450823572,-151.0,0.00033,31]
[403658436,1769450823619,-151.0,0.00033,31]
[403658437,1769450823667,-282.333868,0.00033,31]
[403658438,1769450823713,-244.846364,0.00033,31]
[403658439,1769450823761,-244.846364,0.00033,31]
[403658440,1769450823809,-244.846364,0.00033,31]
[403658441,1769450823855,-272.31094,0.00033,31]
[403658442,1769450823901,-244.846364,0.00033,31]
[403658443,1769450823947,-272.31094,0.00033,31]
[403658444,1769450823995,-272.31094,0.00033,31]
[403658445,1769450824042,-272.31094,0.00033,31]
[403658446,1769450824088,-151.0,0.00033,31]
[403658447,1769450824134,-151.0,0.00033,31]
[403658448,1769450824181,-151.0,0.00033,31]
[403658449,1769450824227,-151.0,0.00033,31]
[403658450,1769450824275,-151.0,0.00033,31]
[403658451,1769450824323,-195.683073,0.00033,31]
[403658452,1769450824370,-195.683073,0.00033,31]
[403658453,1769450824416,-195.683073,0.00033,31]
[403658454,1769450824463,-163.516566,0.00033,31]
[403658455,1769450824509,-195.683073,0.00033,31]
[403658456,1769450824554,-163.516566,0.00033,31]
[403658457,1769450824600,-163.516566,0.00033,31]
[403658458,1769450824645,-151.0,0.00033,31]
[403658459,1769450824692,-163.516566,0.00033,31]
[403658460,1769450824738,-830.966848,0.00033,31]
[403658461,1769450824783,-830.966848,0.00033,31]
[403658462,1769450824836,-830.966848,0.00033,31]
[403658463,1769450824883,-151.0,0.00033,31]
[403658464,1769450824937,-830.966848,0.00033,31]
[403658465,1769450824985,-173.74856,0.00033,31]
[403658466,1769450825034,-1015.153398,0.00033,31]
[403658467,1769450825082,-173.74856,0.00033,31]
[403658468,1769450825131,-1595.048426,0.00033,31]
[403658469,1769450825178,-395.194839,0.00033,31]
[403658470,1769450825225,-1015.153398,0.00033,31]
[403658471,1769450825271,-173.74856,0.00033,31]
[403658472,1769450825320,-1595.048426,0.00033,31]
[403658473,1769450825371,-395.194839,0.00033,31]
[403658474,1769450825421,-1015.153398,0.00033,31]
[403658475,1769450825470,-1595.048426,0.00033,31]
[403658476,1769450825520,-151.0,0.00033,31]
[403658477,1769450825572,-173.74856,0.00033,31]